[Event "*** Titled Tuesday Blitz"]
[Site "Chess.com"]
[Date "2020.12.01"]
[Round "3"]
[White "Vojtap"]
[Black "eCztery"]
[Result "0-1"]
[WhiteElo "2110"]
[BlackElo "2320"]
[TimeControl "180+1"]
[EndTime "10:25:26 PST"]
[Termination "eCztery won by resignation"]

1. e4 {[%clk 0:03:00.9]} 1... e5 {[%clk 0:02:58.1]} 2. Nf3 {[%clk 0:03:01.3]}
2... Nc6 {[%clk 0:02:57.9]} 3. Bb5 {[%clk 0:03:01.9]} 3... a6 {[%clk 0:02:56.7]}
4. Ba4 {[%clk 0:03:02.3]} 4... Nf6 {[%clk 0:02:52.8]} 5. O-O {[%clk 0:03:02.8]}
5... b5 {[%clk 0:02:53.1]} 6. Bb3 {[%clk 0:03:02.3]} 6... d6 {[%clk 0:02:53.5]}
7. Re1 {[%clk 0:03:01.2]} 7... Be7 {[%clk 0:02:53.3]} 8. c3 {[%clk 0:02:59.4]}
8... O-O {[%clk 0:02:53.2]} 9. h3 {[%clk 0:03:00]} 9... Na5 {[%clk 0:02:53.3]}
10. Bc2 {[%clk 0:02:59.3]} 10... c5 {[%clk 0:02:53.6]} 11. d4 {[%clk 0:03:00]}
11... exd4 {[%clk 0:02:45.5]} 12. cxd4 {[%clk 0:03:00.9]} 12... Bb7 {[%clk
0:02:44.8]} 13. Nbd2 {[%clk 0:02:57.1]} 13... Re8 {[%clk 0:02:41.3]} 14. Nf1
{[%clk 0:02:55.9]} 14... Bf8 {[%clk 0:02:41.3]} 15. Ng3 {[%clk 0:02:55.3]} 15...
Nc6 {[%clk 0:02:39.1]} 16. Be3 {[%clk 0:02:39.7]} 16... Nb4 {[%clk 0:02:33.3]}
17. e5 {[%clk 0:02:30.6]} 17... Nxc2 {[%clk 0:02:31.9]} 18. Qxc2 {[%clk
0:02:28.8]} 18... Nd5 {[%clk 0:02:31.5]} 19. exd6 {[%clk 0:02:20]} 19... Nxe3
{[%clk 0:02:28.2]} 20. Rxe3 {[%clk 0:02:12.3]} 20... Rxe3 {[%clk 0:02:24.7]} 21.
fxe3 {[%clk 0:02:13.2]} 21... Bxf3 {[%clk 0:02:17.5]} 22. gxf3 {[%clk
0:02:12.1]} 22... Qg5 {[%clk 0:02:18.1]} 23. Kf2 {[%clk 0:02:00.7]} 23... Bxd6
{[%clk 0:02:17.5]} 24. Rg1 {[%clk 0:01:54.6]} 24... cxd4 {[%clk 0:02:16]} 25.
Nf5 {[%clk 0:01:52.4]} 25... dxe3+ {[%clk 0:02:14]} 26. Kf1 {[%clk 0:01:46.9]}
26... e2+ {[%clk 0:02:11.1]} 27. Qxe2 {[%clk 0:01:46.4]} 27... Qxf5 {[%clk
0:02:11.1]} 28. Kg2 {[%clk 0:01:37.2]} 28... h6 {[%clk 0:02:07.3]} 29. Rd1
{[%clk 0:01:34.9]} 29... Bf4 {[%clk 0:02:04.8]} 30. Rd4 {[%clk 0:01:16.1]} 30...
Rc8 {[%clk 0:02:03.6]} 31. Re4 {[%clk 0:01:14]} 31... Qg6+ {[%clk 0:01:54.1]}
32. Kf2 {[%clk 0:01:09.3]} 32... Qg3+ {[%clk 0:01:52.7]} 0-1

[Event "*** Titled Tuesday Blitz"]
[Site "Chess.com"]
[Date "2020.12.01"]
[Round "3"]
[White "Buffy7"]
[Black "SlovenskiZmaj"]
[Result "1-0"]
[WhiteElo "2675"]
[BlackElo "2456"]
[TimeControl "180+1"]
[EndTime "10:25:33 PST"]
[Termination "Buffy7 won by resignation"]

1. c4 {[%clk 0:03:00.9]} 1... d6 {[%clk 0:02:59]} 2. Nc3 {[%clk 0:03:00.4]} 2...
f6 {[%clk 0:02:59]} 3. d4 {[%clk 0:02:59.1]} 3... e5 {[%clk 0:02:56.3]} 4. e4
{[%clk 0:02:58.7]} 4... Nc6 {[%clk 0:02:53.5]} 5. d5 {[%clk 0:02:48.2]} 5...
Nce7 {[%clk 0:02:53]} 6. f4 {[%clk 0:02:47.8]} 6... exf4 {[%clk 0:02:49.2]} 7.
Bxf4 {[%clk 0:02:48.7]} 7... Ng6 {[%clk 0:02:44.3]} 8. Bg3 {[%clk 0:02:47]} 8...
f5 {[%clk 0:02:44.9]} 9. exf5 {[%clk 0:02:30.7]} 9... Bxf5 {[%clk 0:02:45.8]}
10. Bd3 {[%clk 0:02:29.3]} 10... Qd7 {[%clk 0:02:41.1]} 11. Nge2 {[%clk
0:02:26.6]} 11... O-O-O {[%clk 0:02:38.2]} 12. O-O {[%clk 0:02:23.3]} 12... Bxd3
{[%clk 0:02:35.7]} 13. Qxd3 {[%clk 0:02:24.2]} 13... Ne5 {[%clk 0:02:20.4]} 14.
Bxe5 {[%clk 0:02:17.5]} 14... dxe5 {[%clk 0:02:21.3]} 15. Ne4 {[%clk 0:02:16.6]}
15... Nf6 {[%clk 0:02:19.2]} 16. N2g3 {[%clk 0:02:09.4]} 16... Kb8 {[%clk
0:02:14.1]} 17. Kh1 {[%clk 0:01:58.3]} 17... h5 {[%clk 0:02:07.4]} 18. Nxf6
{[%clk 0:01:50.4]} 18... gxf6 {[%clk 0:02:08.3]} 19. Rxf6 {[%clk 0:01:50.5]}
19... h4 {[%clk 0:02:08.8]} 20. Ne4 {[%clk 0:01:49.3]} 20... h3 {[%clk
0:01:52.8]} 21. g3 {[%clk 0:01:48.7]} 21... Bg7 {[%clk 0:01:44.4]} 22. Rf3
{[%clk 0:01:46.1]} 22... Qg4 {[%clk 0:01:38.9]} 23. Raf1 {[%clk 0:01:43.1]}
23... Bf8 {[%clk 0:01:37.3]} 24. Rf5 {[%clk 0:01:29.6]} 24... Bd6 {[%clk
0:01:23]} 25. Qf3 {[%clk 0:01:28.4]} 25... Qg7 {[%clk 0:01:17.5]} 26. Rf7 {[%clk
0:01:24.3]} 26... Qg6 {[%clk 0:01:18]} 27. c5 {[%clk 0:01:23.8]} 1-0

[Event "*** Titled Tuesday Blitz"]
[Site "Chess.com"]
[Date "2020.12.01"]
[Round "3"]
[White "venus02"]
[Black "HrvojeZagreb"]
[Result "1-0"]
[WhiteElo "2504"]
[BlackElo "2250"]
[TimeControl "180+1"]
[EndTime "10:25:33 PST"]
[Termination "venus02 won by resignation"]

1. e4 {[%clk 0:02:59.9]} 1... e6 {[%clk 0:02:59.3]} 2. d4 {[%clk 0:02:59.3]}
2... d5 {[%clk 0:02:59.4]} 3. Nd2 {[%clk 0:02:59.9]} 3... dxe4 {[%clk
0:02:58.9]} 4. Nxe4 {[%clk 0:02:59.6]} 4... Nd7 {[%clk 0:02:59.5]} 5. Nf3 {[%clk
0:02:59.3]} 5... Ngf6 {[%clk 0:02:59.8]} 6. Bd3 {[%clk 0:02:59.5]} 6... Nxe4
{[%clk 0:03:00]} 7. Bxe4 {[%clk 0:02:59.8]} 7... Nf6 {[%clk 0:03:00.4]} 8. Bg5
{[%clk 0:03:00.1]} 8... Be7 {[%clk 0:02:58.2]} 9. Bxf6 {[%clk 0:02:59.4]} 9...
Bxf6 {[%clk 0:02:56.6]} 10. Qd3 {[%clk 0:02:59.7]} 10... c5 {[%clk 0:02:32.5]}
11. O-O-O {[%clk 0:02:44.3]} 11... cxd4 {[%clk 0:02:29.5]} 12. Nxd4 {[%clk
0:02:44.4]} 12... h6 {[%clk 0:02:20.9]} 13. Nb5 {[%clk 0:02:37.3]} 13... Qb6
{[%clk 0:01:56.4]} 14. Nd6+ {[%clk 0:02:23.5]} 14... Kf8 {[%clk 0:01:50.9]} 15.
c3 {[%clk 0:02:20.1]} 15... a5 {[%clk 0:01:34.7]} 16. Kb1 {[%clk 0:02:15.3]}
16... a4 {[%clk 0:01:33.2]} 17. a3 {[%clk 0:02:13.4]} 17... Bd7 {[%clk
0:01:21.7]} 18. Nxf7 {[%clk 0:02:00.8]} 18... Kxf7 {[%clk 0:00:43.2]} 19. Bg6+
{[%clk 0:01:56]} 19... Kf8 {[%clk 0:00:39.3]} 20. Qxd7 {[%clk 0:01:55.8]} 20...
Be7 {[%clk 0:00:31.5]} 21. Rd3 {[%clk 0:01:54.2]} 1-0

[Event "*** Titled Tuesday Blitz"]
[Site "Chess.com"]
[Date "2020.12.01"]
[Round "3"]
[White "Atousa1"]
[Black "JuliaEfremova"]
[Result "1-0"]
[WhiteElo "2488"]
[BlackElo "2210"]
[TimeControl "180+1"]
[EndTime "10:25:35 PST"]
[Termination "Atousa1 won by resignation"]

1. e4 {[%clk 0:03:00.9]} 1... d5 {[%clk 0:02:59.1]} 2. exd5 {[%clk 0:03:00.6]}
2... Qxd5 {[%clk 0:03:00]} 3. Nc3 {[%clk 0:02:59.8]} 3... Qa5 {[%clk 0:02:59.1]}
4. d4 {[%clk 0:02:58.2]} 4... Nf6 {[%clk 0:02:59.1]} 5. Nf3 {[%clk 0:02:53.9]}
5... Bg4 {[%clk 0:02:58.8]} 6. h3 {[%clk 0:02:50.4]} 6... Bxf3 {[%clk
0:02:58.5]} 7. Qxf3 {[%clk 0:02:49.9]} 7... c6 {[%clk 0:02:58.9]} 8. Bc4 {[%clk
0:02:49]} 8... e6 {[%clk 0:02:58.9]} 9. Bd2 {[%clk 0:02:49]} 9... Qc7 {[%clk
0:02:57.2]} 10. O-O-O {[%clk 0:02:48.1]} 10... Nbd7 {[%clk 0:02:56]} 11. g4
{[%clk 0:02:29.7]} 11... Nb6 {[%clk 0:02:53.9]} 12. Bb3 {[%clk 0:02:24.6]} 12...
O-O-O {[%clk 0:02:53.3]} 13. Bg5 {[%clk 0:02:16]} 13... Be7 {[%clk 0:02:49.9]}
14. Rhe1 {[%clk 0:02:11.7]} 14... h6 {[%clk 0:02:47.5]} 15. Bh4 {[%clk
0:02:11.2]} 15... Nbd5 {[%clk 0:02:33.7]} 16. Nxd5 {[%clk 0:02:01.7]} 16... Nxd5
{[%clk 0:02:32.6]} 17. Bg3 {[%clk 0:01:55.6]} 17... Bg5+ {[%clk 0:02:21.5]} 18.
Kb1 {[%clk 0:01:54.2]} 18... Qd7 {[%clk 0:01:46.8]} 19. c4 {[%clk 0:01:50.1]}
19... Nb6 {[%clk 0:01:36.6]} 20. Qe2 {[%clk 0:01:46.8]} 20... Rhe8 {[%clk
0:01:31.1]} 21. Qe5 {[%clk 0:01:43.4]} 1-0

[Event "*** Titled Tuesday Blitz"]
[Site "Chess.com"]
[Date "2020.12.01"]
[Round "3"]
[White "Dreamer_01"]
[Black "Soltan49"]
[Result "0-1"]
[WhiteElo "2375"]
[BlackElo "2223"]
[TimeControl "180+1"]
[EndTime "10:25:35 PST"]
[Termination "Soltan49 won by resignation"]

1. d4 {[%clk 0:03:00.9]} 1... Nf6 {[%clk 0:02:59.8]} 2. Bf4 {[%clk 0:02:59.9]}
2... d5 {[%clk 0:02:59.1]} 3. Nc3 {[%clk 0:02:58.9]} 3... c5 {[%clk 0:02:58.2]}
4. e3 {[%clk 0:02:57.2]} 4... a6 {[%clk 0:02:56.6]} 5. dxc5 {[%clk 0:02:54]}
5... Nc6 {[%clk 0:02:55.4]} 6. Nf3 {[%clk 0:02:52.9]} 6... Bg4 {[%clk
0:02:55.1]} 7. h3 {[%clk 0:02:52]} 7... Bh5 {[%clk 0:02:42.2]} 8. g4 {[%clk
0:02:48.7]} 8... Bg6 {[%clk 0:02:41.8]} 9. Ne5 {[%clk 0:02:48.8]} 9... Nxe5
{[%clk 0:02:34.9]} 10. Bxe5 {[%clk 0:02:48.9]} 10... e6 {[%clk 0:02:35.8]} 11.
Qd4 {[%clk 0:02:48.9]} 11... Rc8 {[%clk 0:02:30.6]} 12. Bxf6 {[%clk 0:02:35.1]}
12... Qxf6 {[%clk 0:02:27.3]} 13. Qa4+ {[%clk 0:02:33.7]} 13... Kd8 {[%clk
0:02:25.1]} 14. Bg2 {[%clk 0:02:24.7]} 14... Bxc5 {[%clk 0:02:21]} 15. O-O
{[%clk 0:02:21.8]} 15... h5 {[%clk 0:02:17.7]} 16. Rad1 {[%clk 0:02:10.2]} 16...
hxg4 {[%clk 0:02:15.5]} 17. Nxd5 {[%clk 0:02:06.7]} 17... exd5 {[%clk
0:02:05.1]} 18. Rxd5+ {[%clk 0:02:05.9]} 18... Bd6 {[%clk 0:01:54.3]} 19. Rfd1
{[%clk 0:02:05.4]} 19... Rc6 {[%clk 0:01:46.4]} 20. Qxc6 {[%clk 0:01:40.6]}
20... bxc6 {[%clk 0:01:46.2]} 21. Rxd6+ {[%clk 0:01:40.9]} 21... Kc7 {[%clk
0:01:14.1]} 22. Rxf6 {[%clk 0:01:39.6]} 22... gxf6 {[%clk 0:01:15]} 23. hxg4
{[%clk 0:01:39.9]} 23... Bxc2 {[%clk 0:01:15]} 24. Rc1 {[%clk 0:01:40.1]} 24...
Ba4 {[%clk 0:01:14.8]} 25. b3 {[%clk 0:01:40.2]} 25... Bb5 {[%clk 0:01:15.2]}
26. a4 {[%clk 0:01:40.3]} 26... Bd3 {[%clk 0:01:12]} 27. Rc2 {[%clk 0:01:40.7]}
27... Bxc2 {[%clk 0:01:11.5]} 0-1

[Event "*** Titled Tuesday Blitz"]
[Site "Chess.com"]
[Date "2020.12.01"]
[Round "3"]
[White "TheKingDoctor"]
[Black "oezs95"]
[Result "0-1"]
[WhiteElo "2078"]
[BlackElo "2312"]
[TimeControl "180+1"]
[EndTime "10:25:39 PST"]
[Termination "oezs95 won by resignation"]

1. d4 {[%clk 0:03:00.9]} 1... Nf6 {[%clk 0:02:57.9]} 2. Bg5 {[%clk 0:02:59.7]}
2... e6 {[%clk 0:02:56.8]} 3. e4 {[%clk 0:02:59]} 3... h6 {[%clk 0:02:57.2]} 4.
Bxf6 {[%clk 0:02:58.8]} 4... Qxf6 {[%clk 0:02:58.1]} 5. c3 {[%clk 0:02:59.3]}
5... d6 {[%clk 0:02:57.2]} 6. Nd2 {[%clk 0:02:58.4]} 6... c6 {[%clk 0:02:55.1]}
7. Ngf3 {[%clk 0:02:58.7]} 7... e5 {[%clk 0:02:55.5]} 8. Bd3 {[%clk 0:02:55.4]}
8... Be7 {[%clk 0:02:54.1]} 9. h3 {[%clk 0:02:51.6]} 9... Nd7 {[%clk 0:02:53.4]}
10. O-O {[%clk 0:02:49.1]} 10... Nf8 {[%clk 0:02:49.2]} 11. Re1 {[%clk
0:02:30.6]} 11... g5 {[%clk 0:02:47.2]} 12. Nf1 {[%clk 0:02:11]} 12... g4 {[%clk
0:02:39.9]} 13. hxg4 {[%clk 0:02:10.4]} 13... Bxg4 {[%clk 0:02:40.8]} 14. Ne3
{[%clk 0:02:10.7]} 14... h5 {[%clk 0:02:31.7]} 15. Be2 {[%clk 0:01:50.3]} 15...
Ng6 {[%clk 0:02:27]} 16. dxe5 {[%clk 0:01:45.3]} 16... dxe5 {[%clk 0:02:24.9]}
17. Qb3 {[%clk 0:01:06.8]} 17... O-O-O {[%clk 0:02:19.4]} 18. Rad1 {[%clk
0:00:55.9]} 18... Nf4 {[%clk 0:02:15.7]} 19. Rxd8+ {[%clk 0:00:47.9]} 19... Bxd8
{[%clk 0:02:14.6]} 20. a4 {[%clk 0:00:42.8]} 20... Bb6 {[%clk 0:02:00]} 21. Qc2
{[%clk 0:00:35.5]} 21... Rg8 {[%clk 0:01:55.7]} 22. Nf5 {[%clk 0:00:30.5]} 22...
Bxf5 {[%clk 0:01:52.2]} 23. exf5 {[%clk 0:00:30.3]} 23... Rxg2+ {[%clk
0:01:52.3]} 24. Kf1 {[%clk 0:00:30.5]} 24... Rxf2+ {[%clk 0:01:52.3]} 0-1

[Event "*** Titled Tuesday Blitz"]
[Site "Chess.com"]
[Date "2020.12.01"]
[Round "3"]
[White "ApacheSVD"]
[Black "IMTominho"]
[Result "0-1"]
[WhiteElo "2434"]
[BlackElo "2750"]
[TimeControl "180+1"]
[EndTime "10:25:50 PST"]
[Termination "IMTominho won by resignation"]

1. e4 {[%clk 0:03:00.9]} 1... e5 {[%clk 0:02:59.5]} 2. Nf3 {[%clk 0:03:00.6]}
2... Nf6 {[%clk 0:02:59.4]} 3. Nc3 {[%clk 0:02:59.7]} 3... Bb4 {[%clk
0:02:58.2]} 4. Nxe5 {[%clk 0:02:43.4]} 4... O-O {[%clk 0:02:57.7]} 5. Be2 {[%clk
0:02:21.3]} 5... Re8 {[%clk 0:02:55.1]} 6. Nf3 {[%clk 0:02:19.4]} 6... Nxe4
{[%clk 0:02:53.3]} 7. Nxe4 {[%clk 0:02:17.3]} 7... Rxe4 {[%clk 0:02:54.2]} 8. c3
{[%clk 0:02:14.7]} 8... Bf8 {[%clk 0:02:51.5]} 9. O-O {[%clk 0:02:11.8]} 9... d5
{[%clk 0:02:37.1]} 10. d4 {[%clk 0:02:11.7]} 10... Bg4 {[%clk 0:02:32.1]} 11.
Be3 {[%clk 0:01:50.2]} 11... c6 {[%clk 0:02:26.7]} 12. Ne5 {[%clk 0:01:27.9]}
12... Bxe2 {[%clk 0:02:18.1]} 13. Qxe2 {[%clk 0:01:28.8]} 13... f6 {[%clk
0:02:14.3]} 14. Nd3 {[%clk 0:01:24.5]} 14... Nd7 {[%clk 0:02:13.1]} 15. Qf3
{[%clk 0:01:24.6]} 15... Qb6 {[%clk 0:02:04.6]} 16. Rfe1 {[%clk 0:01:20.9]}
16... Rae8 {[%clk 0:02:03]} 17. Bd2 {[%clk 0:01:16.9]} 17... Bd6 {[%clk
0:01:58.6]} 18. g3 {[%clk 0:01:12.4]} 18... Nf8 {[%clk 0:01:52.5]} 19. Kg2
{[%clk 0:01:10.4]} 19... Qb5 {[%clk 0:01:51.1]} 20. b3 {[%clk 0:01:05.9]} 20...
Qa6 {[%clk 0:01:39.8]} 21. Re3 {[%clk 0:01:03.1]} 21... Rxe3 {[%clk 0:01:23.2]}
0-1

[Event "*** Titled Tuesday Blitz"]
[Site "Chess.com"]
[Date "2020.12.01"]
[Round "3"]
[White "elamier"]
[Black "midedu"]
[Result "1-0"]
[WhiteElo "2312"]
[BlackElo "2089"]
[TimeControl "180+1"]
[EndTime "10:26:02 PST"]
[Termination "elamier won by resignation"]

1. d4 {[%clk 0:03:00.9]} 1... Nf6 {[%clk 0:02:59.1]} 2. Bg5 {[%clk 0:03:01.2]}
2... e6 {[%clk 0:02:58.5]} 3. e4 {[%clk 0:03:00.3]} 3... d6 {[%clk 0:02:57.3]}
4. Nc3 {[%clk 0:02:57.8]} 4... Be7 {[%clk 0:02:57]} 5. Qd2 {[%clk 0:02:57.4]}
5... a6 {[%clk 0:02:55.8]} 6. f4 {[%clk 0:02:57.3]} 6... h6 {[%clk 0:02:49.9]}
7. Bxf6 {[%clk 0:02:55.6]} 7... Bxf6 {[%clk 0:02:49.5]} 8. e5 {[%clk 0:02:55.8]}
8... dxe5 {[%clk 0:02:42.5]} 9. fxe5 {[%clk 0:02:55.1]} 9... Bg5 {[%clk
0:02:41.9]} 10. Qf2 {[%clk 0:02:53.2]} 10... Nc6 {[%clk 0:02:32.9]} 11. Nf3
{[%clk 0:02:53.6]} 11... O-O {[%clk 0:02:28.5]} 12. h4 {[%clk 0:02:45.7]} 12...
Be7 {[%clk 0:02:26]} 13. O-O-O {[%clk 0:02:44.6]} 13... Bb4 {[%clk 0:02:25.4]}
14. Ne4 {[%clk 0:02:42.9]} 14... b5 {[%clk 0:02:16.5]} 15. Bd3 {[%clk
0:02:37.9]} 15... Be7 {[%clk 0:02:14]} 16. g4 {[%clk 0:02:36.7]} 16... Nb4
{[%clk 0:02:10.5]} 17. Kb1 {[%clk 0:02:32.3]} 17... Bb7 {[%clk 0:02:08.6]} 18.
g5 {[%clk 0:02:24.3]} 18... Nxd3 {[%clk 0:01:51.6]} 19. cxd3 {[%clk 0:02:24.3]}
19... h5 {[%clk 0:01:49.3]} 20. Nf6+ {[%clk 0:01:51.3]} 20... gxf6 {[%clk
0:01:43.8]} 21. gxf6 {[%clk 0:01:50.9]} 21... Bxf6 {[%clk 0:01:40.5]} 22. Rhg1+
{[%clk 0:01:49.1]} 22... Kh8 {[%clk 0:01:37.7]} 23. Qe3 {[%clk 0:01:25.9]} 23...
Kh7 {[%clk 0:01:25.4]} 24. Ng5+ {[%clk 0:01:21.9]} 24... Bxg5 {[%clk 0:01:24]}
25. Rxg5 {[%clk 0:01:21.4]} 25... f5 {[%clk 0:00:59.9]} 26. Rdg1 {[%clk
0:01:15.1]} 1-0

[Event "*** Titled Tuesday Blitz"]
[Site "Chess.com"]
[Date "2020.12.01"]
[Round "3"]
[White "BigAl"]
[Black "carloseduar100"]
[Result "1-0"]
[WhiteElo "2460"]
[BlackElo "2038"]
[TimeControl "180+1"]
[EndTime "10:26:07 PST"]
[Termination "BigAl won by resignation"]

1. Nf3 {[%clk 0:03:00.9]} 1... Nf6 {[%clk 0:02:58.7]} 2. g3 {[%clk 0:02:59.3]}
2... d5 {[%clk 0:02:58.8]} 3. Bg2 {[%clk 0:02:59.7]} 3... c6 {[%clk 0:02:57.4]}
4. O-O {[%clk 0:03:00.2]} 4... Nbd7 {[%clk 0:02:56.8]} 5. d3 {[%clk 0:02:58.2]}
5... e5 {[%clk 0:02:56.9]} 6. Nc3 {[%clk 0:02:57.5]} 6... Bd6 {[%clk 0:02:56.4]}
7. e4 {[%clk 0:02:57.7]} 7... O-O {[%clk 0:02:56.3]} 8. exd5 {[%clk 0:02:49]}
8... cxd5 {[%clk 0:02:56.2]} 9. Nb5 {[%clk 0:02:49.1]} 9... Bb8 {[%clk
0:02:55.3]} 10. c4 {[%clk 0:02:46.6]} 10... d4 {[%clk 0:02:51.7]} 11. Re1 {[%clk
0:02:34.8]} 11... Re8 {[%clk 0:02:51.1]} 12. b4 {[%clk 0:02:34.4]} 12... Qb6
{[%clk 0:02:40.9]} 13. a4 {[%clk 0:02:25.1]} 13... a5 {[%clk 0:02:32.2]} 14.
bxa5 {[%clk 0:02:16.7]} 14... Rxa5 {[%clk 0:02:28.2]} 15. Bd2 {[%clk 0:02:09.4]}
15... Ra8 {[%clk 0:02:27.7]} 16. a5 {[%clk 0:02:03.3]} 16... Qd8 {[%clk
0:02:21]} 17. Bb4 {[%clk 0:02:03.4]} 17... b6 {[%clk 0:02:05.1]} 18. Nfxd4
{[%clk 0:01:54.4]} 18... bxa5 {[%clk 0:01:41.1]} 19. Bxa8 {[%clk 0:01:28]} 19...
axb4 {[%clk 0:01:40.8]} 20. Nc6 {[%clk 0:01:24.1]} 20... Qb6 {[%clk 0:01:35.8]}
21. Nxb8 {[%clk 0:01:20.7]} 21... Qxb8 {[%clk 0:01:33]} 22. Bg2 {[%clk
0:01:13.1]} 22... Nc5 {[%clk 0:01:32.6]} 23. d4 {[%clk 0:01:09.3]} 23... Nce4
{[%clk 0:01:07]} 24. Bxe4 {[%clk 0:01:04.5]} 24... Nxe4 {[%clk 0:01:07.9]} 25.
Rxe4 {[%clk 0:01:04.3]} 1-0

[Event "*** Titled Tuesday Blitz"]
[Site "Chess.com"]
[Date "2020.12.01"]
[Round "3"]
[White "barriochess"]
[Black "Karacsonyi_Gellert"]
[Result "0-1"]
[WhiteElo "2394"]
[BlackElo "2662"]
[TimeControl "180+1"]
[EndTime "10:26:09 PST"]
[Termination "Karacsonyi_Gellert won by resignation"]

1. d4 {[%clk 0:03:00.9]} 1... Nf6 {[%clk 0:02:59.6]} 2. Bg5 {[%clk 0:02:58.3]}
2... d5 {[%clk 0:02:59.5]} 3. Nd2 {[%clk 0:02:57.3]} 3... g6 {[%clk 0:02:59.2]}
4. e3 {[%clk 0:02:52.5]} 4... Bg7 {[%clk 0:02:59.4]} 5. Bd3 {[%clk 0:02:52.7]}
5... O-O {[%clk 0:02:59.4]} 6. f4 {[%clk 0:02:53]} 6... b6 {[%clk 0:02:56.5]} 7.
Qe2 {[%clk 0:02:52.2]} 7... c5 {[%clk 0:02:56.6]} 8. c3 {[%clk 0:02:51.5]} 8...
a5 {[%clk 0:02:54.4]} 9. Ngf3 {[%clk 0:02:44.9]} 9... Ba6 {[%clk 0:02:54.4]} 10.
O-O {[%clk 0:02:37.4]} 10... Bxd3 {[%clk 0:02:54.2]} 11. Qxd3 {[%clk 0:02:37.9]}
11... Nc6 {[%clk 0:02:47.1]} 12. Ne5 {[%clk 0:02:36.7]} 12... Nxe5 {[%clk
0:02:34.6]} 13. fxe5 {[%clk 0:02:36.2]} 13... Nd7 {[%clk 0:02:35.1]} 14. e4
{[%clk 0:02:27.1]} 14... dxe4 {[%clk 0:02:32.9]} 15. Qxe4 {[%clk 0:02:19.9]}
15... cxd4 {[%clk 0:02:32.8]} 16. cxd4 {[%clk 0:02:19.5]} 16... h6 {[%clk
0:02:29.5]} 17. Be3 {[%clk 0:01:59.2]} 17... e6 {[%clk 0:02:16.1]} 18. Rf2
{[%clk 0:01:52.3]} 18... b5 {[%clk 0:02:15.7]} 19. Raf1 {[%clk 0:01:51.6]} 19...
Nb6 {[%clk 0:02:16.1]} 20. Qc6 {[%clk 0:01:40.8]} 20... Nd5 {[%clk 0:02:13.6]}
21. Bf4 {[%clk 0:01:09.5]} 21... Qb6 {[%clk 0:02:10.4]} 22. Qxb6 {[%clk
0:01:06.7]} 22... Nxb6 {[%clk 0:02:11.3]} 23. Nb3 {[%clk 0:01:02.2]} 23... Rfd8
{[%clk 0:02:09.4]} 24. Rd1 {[%clk 0:00:47.8]} 24... a4 {[%clk 0:02:01.8]} 25.
Nc5 {[%clk 0:00:47.4]} 25... Rac8 {[%clk 0:02:02]} 26. Ne4 {[%clk 0:00:46.3]}
26... g5 {[%clk 0:01:49.5]} 27. Be3 {[%clk 0:00:40.3]} 27... Nc4 {[%clk
0:01:46.4]} 28. Bc1 {[%clk 0:00:37.9]} 28... Nxe5 {[%clk 0:01:46.4]} 29. Rdf1
{[%clk 0:00:31.1]} 29... Nd3 {[%clk 0:01:45.7]} 30. Rxf7 {[%clk 0:00:25.2]}
30... Rxc1 {[%clk 0:01:42.5]} 0-1

[Event "*** Titled Tuesday Blitz"]
[Site "Chess.com"]
[Date "2020.12.01"]
[Round "3"]
[White "Anna_ChessMate"]
[Black "Skat2704"]
[Result "1-0"]
[WhiteElo "2575"]
[BlackElo "2360"]
[TimeControl "180+1"]
[EndTime "10:26:14 PST"]
[Termination "Anna_ChessMate won by resignation"]

1. d4 {[%clk 0:03:00.9]} 1... d5 {[%clk 0:02:59.7]} 2. c4 {[%clk 0:03:01.4]}
2... e6 {[%clk 0:02:59.5]} 3. Nf3 {[%clk 0:03:01.7]} 3... Nf6 {[%clk 0:02:59.5]}
4. Nc3 {[%clk 0:03:01.9]} 4... Be7 {[%clk 0:02:58.8]} 5. Bf4 {[%clk 0:03:01.4]}
5... O-O {[%clk 0:02:58.3]} 6. e3 {[%clk 0:03:01.7]} 6... b6 {[%clk 0:02:58.2]}
7. cxd5 {[%clk 0:03:00.2]} 7... exd5 {[%clk 0:02:57.5]} 8. Bd3 {[%clk
0:03:00.5]} 8... Bb7 {[%clk 0:02:56.7]} 9. O-O {[%clk 0:03:00.9]} 9... c5 {[%clk
0:02:56.2]} 10. Rc1 {[%clk 0:02:56]} 10... Nc6 {[%clk 0:02:55.9]} 11. dxc5
{[%clk 0:02:54.8]} 11... bxc5 {[%clk 0:02:55.5]} 12. b3 {[%clk 0:02:53.3]} 12...
h6 {[%clk 0:02:54.9]} 13. Na4 {[%clk 0:02:53.6]} 13... Nd7 {[%clk 0:02:45.4]}
14. Bb1 {[%clk 0:02:43.8]} 14... Nb4 {[%clk 0:02:10.9]} 15. a3 {[%clk
0:02:36.8]} 15... Na6 {[%clk 0:02:10.8]} 16. Qd3 {[%clk 0:02:19.1]} 16... Nf6
{[%clk 0:02:02.8]} 17. Be5 {[%clk 0:02:04.3]} 17... g6 {[%clk 0:02:01.4]} 18.
Rfd1 {[%clk 0:01:58.5]} 18... Rc8 {[%clk 0:01:50.7]} 19. h3 {[%clk 0:01:49.1]}
19... Qd7 {[%clk 0:01:47.8]} 20. Ba1 {[%clk 0:01:48.1]} 20... Rfd8 {[%clk
0:01:45.6]} 21. Ne5 {[%clk 0:01:47.7]} 21... Qe8 {[%clk 0:01:38.8]} 22. Qd2
{[%clk 0:01:34.7]} 22... c4 {[%clk 0:01:34]} 23. Qd4 {[%clk 0:01:13.2]} 23...
Nc5 {[%clk 0:01:22.1]} 24. Ng4 {[%clk 0:01:08.3]} 24... Nce4 {[%clk 0:01:14.5]}
25. Bxe4 {[%clk 0:01:03.4]} 25... dxe4 {[%clk 0:01:09.3]} 26. Nxf6+ {[%clk
0:01:03.7]} 26... Bxf6 {[%clk 0:01:01.1]} 27. Qxf6 {[%clk 0:01:04.6]} 27...
Rxd1+ {[%clk 0:00:59.6]} 28. Rxd1 {[%clk 0:01:05.5]} 1-0